bitfinex-derivatives/quotes_BTCF0:USTF0_20250711
["timestamp","ask_amount","ask_price","bid_price","bid_amount"]
[1752275552483,0.2330559,117650.0,117640.0,0.00170003]
[1752275552684,0.97613605,117650.0,117640.0,0.44213653]
[1752275552887,1.14607195,117650.0,117640.0,0.44213653]
[1752275553290,0.78527195,117650.0,117640.0,0.44213653]
[1752275553683,0.78527195,117650.0,117640.0,0.45570516]
[1752275553684,0.61533605,117650.0,117640.0,0.45570516]
[1752275553887,0.84637201,117650.0,117640.0,0.45570516]
[1752275554083,0.67643611,117650.0,117640.0,0.46170516]
[1752275554282,0.84637201,117650.0,117640.0,0.46170516]
[1752275554488,0.84762737,117650.0,117640.0,0.44213653]
[1752275554690,0.84962737,117650.0,117640.0,0.44213653]
[1752275554988,0.52279944,117650.0,117640.0,0.44213653]
[1752275555189,0.69273534,117650.0,117640.0,0.44213653]
[1752275555581,0.71397534,117650.0,117640.0,0.44213653]
[1752275556192,0.65287528,117650.0,117640.0,0.4506779]
[1752275557293,0.7215731,117650.0,117640.0,0.4506779]
[1752275558594,0.57316726,117650.0,117640.0,0.4506779]
[1752275558993,0.5516372,117650.0,117640.0,0.4506779]
[1752275562193,0.11057319,117650.0,117640.0,1.12635191]
[1752275562488,0.4254472,117650.0,117640.0,0.8114779]
[1752275562692,0.6820031,117650.0,117640.0,0.8114779]
[1752275562893,0.7215731,117650.0,117640.0,0.8114779]
[1752275563189,0.7215731,117650.0,117640.0,0.4506779]
[1752275563895,1.0823731,117650.0,117640.0,0.4506779]
[1752275564286,0.9124372,117650.0,117640.0,0.4506779]
[1752275564492,0.4254472,117650.0,117640.0,0.4506779]
[1752275564696,0.4254472,117650.0,117640.0,0.8114779]
[1752275567196,0.35674938,117650.0,117640.0,0.8114779]
[1752275569899,0.41986938,117650.0,117640.0,0.8114779]
[1752275572198,0.35674938,117650.0,117640.0,0.8114779]
[1752275573598,0.33550938,117650.0,117640.0,0.8114779]
[1752275575000,0.31787401,117650.0,117640.0,0.8114779]
[1752275575203,0.33555169,117650.0,117640.0,0.8114779]
[1752275575795,0.02067768,117650.0,117640.0,0.8114779]
[1752275576095,8e-08,117650.0,117640.0,1.12635191]
[1752275576410,8e-08,117650.0,117640.0,1.62635191]
[1752275577295,0.07853024,117660.0,117650.0,0.3636059]
[1752275577499,0.03867018,117660.0,117650.0,1.62555991]
[1752275578000,8e-08,117660.0,117650.0,1.62555991]
[1752275578998,0.06110006,117670.0,117660.0,0.2376314]
[1752275579197,0.06110006,117670.0,117660.0,1.03926541]
[1752275579394,0.37597407,117680.0,117670.0,0.169907]
[1752275579596,0.37597407,117680.0,117670.0,1.310697]
[1752275579797,0.06110006,117680.0,117670.0,1.310697]
[1752275580899,0.06110006,117680.0,117670.0,1.308697]
[1752275581404,0.06410006,117680.0,117670.0,1.308697]
[1752275582100,0.06410006,117680.0,117670.0,1.62357101]
[1752275582304,0.003,117680.0,117670.0,1.62357101]
[1752275584806,0.003,117680.0,117670.0,1.308697]
[1752275585503,0.001,117680.0,117670.0,1.309697]
[1752275586710,0.34442401,117690.0,117680.0,0.37996863]
[1752275586907,0.34442401,117690.0,117680.0,0.74076863]
[1752275587209,0.02955,117690.0,117680.0,0.74076863]
[1752275589211,0.36395699,117690.0,117680.0,0.74076863]
[1752275590412,0.04908298,117690.0,117680.0,0.74076863]
[1752275590613,1e-07,117700.0,117690.0,0.3635481]
[1752275590811,1e-07,117700.0,117690.0,1.62494211]
[1752275591013,0.01762961,117710.0,117700.0,0.3625337]
[1752275591208,0.01762961,117710.0,117700.0,0.7233337]
[1752275591710,0.01762961,117710.0,117700.0,1.03820771]
[1752275591914,0.16516676,117730.0,117720.0,0.2375448]
[1752275592107,0.48004077,117730.0,117720.0,1.3100248]
[1752275592708,0.48004077,117730.0,117720.0,1.3070248]
[1752275593016,0.14754006,117730.0,117720.0,1.3070248]
[1752275593211,0.06310006,117730.0,117720.0,1.3071448]
[1752275593406,0.008,117730.0,117720.0,1.3071448]
[1752275593612,0.32287401,117730.0,117720.0,1.3085048]
[1752275594013,0.32287401,117730.0,117720.0,1.31687695]
[1752275594414,0.32287401,117730.0,117720.0,1.31707695]
[1752275594614,0.32287401,117730.0,117720.0,1.31607695]
[1752275594912,0.48769441,117730.0,117720.0,1.31607695]
[1752275595516,0.48669441,117730.0,117720.0,1.31607695]
[1752275595814,0.54783441,117730.0,117720.0,1.31607695]
[1752275596010,0.54883441,117730.0,117720.0,1.31607695]
[1752275596214,0.54883441,117730.0,117720.0,1.3077048]
[1752275597418,0.57285441,117730.0,117720.0,1.3077048]
[1752275597918,0.2579804,117730.0,117720.0,1.3077048]
[1752275598119,0.57285441,117730.0,117720.0,1.3077048]
[1752275599624,0.54883441,117730.0,117720.0,1.3077048]
[1752275600022,0.54883441,117730.0,117720.0,1.3075448]
[1752275600818,0.54883441,117730.0,117720.0,1.3076648]
[1752275602832,0.56614438,117730.0,117720.0,1.3076648]
[1752275603425,0.59016438,117730.0,117720.0,1.3076648]
[1752275603625,0.56614438,117730.0,117720.0,1.3076648]
[1752275605924,0.08144997,117730.0,117720.0,1.3076648]
[1752275606124,0.50500438,117730.0,117720.0,1.3076648]
[1752275606319,0.33518398,117730.0,117720.0,1.3076648]
[1752275607330,0.39628404,117730.0,117720.0,1.3076648]
[1752275608523,0.39630502,117730.0,117720.0,1.3076648]
[1752275608828,0.45639502,117730.0,117720.0,1.3076648]
[1752275609325,1.04871542,117730.0,117720.0,0.9463448]
[1752275609519,0.98761536,117730.0,117720.0,0.9463448]
[1752275610228,0.98761536,117730.0,117720.0,0.3595048]
[1752275610424,0.98761536,117730.0,117720.0,0.9463448]
[1752275610630,1.1173137,117730.0,117720.0,0.9463448]
[1752275613132,0.7565137,117730.0,117720.0,0.9463448]
[1752275614134,0.75651269,117730.0,117720.0,0.9463448]
[1752275614934,0.75551269,117730.0,117720.0,0.9463448]
[1752275615133,0.7718694,117730.0,117720.0,0.9463448]
[1752275617331,0.7341894,117730.0,117720.0,0.9463448]
[1752275620333,0.7341894,117730.0,117720.0,0.87752845]
[1752275620533,0.65773263,117730.0,117720.0,0.87752845]
[1752275620834,0.73413777,117730.0,117720.0,0.87752845]
[1752275622831,0.56431737,117730.0,117720.0,0.87752845]
[1752275623030,0.56431737,117730.0,117720.0,1.23832845]
[1752275623734,0.54029737,117730.0,117720.0,1.23832845]
[1752275629138,0.54029737,117730.0,117720.0,0.87752845]
[1752275630237,0.54029737,117730.0,117720.0,1.23832845]
[1752275630636,0.54029737,117730.0,117720.0,0.87752845]
[1752275630838,0.71011777,117730.0,117720.0,0.87752845]
[1752275631138,0.54029737,117730.0,117720.0,0.87752845]
[1752275633834,0.71011777,117730.0,117720.0,0.87752845]
[1752275634034,0.73400777,117730.0,117720.0,0.87752845]
[1752275635333,0.73378733,117730.0,117720.0,0.87752845]
[1752275635740,0.71667783,117730.0,117720.0,0.87752845]
[1752275636437,0.52296743,117730.0,117720.0,0.87752845]
[1752275636635,0.44656229,117730.0,117720.0,0.87752845]
[1752275637539,0.64027269,117730.0,117720.0,0.87752845]
[1752275638343,0.47045229,117730.0,117720.0,0.87752845]
[1752275638841,0.64027269,117730.0,117720.0,0.87752845]
[1752275639343,0.70042611,117730.0,117720.0,0.87852845]
[1752275639543,0.70142611,117730.0,117720.0,0.87852845]
[1752275641746,0.64027269,117730.0,117720.0,0.87852845]
[1752275646549,0.44656229,117730.0,117720.0,0.87852845]
[1752275648050,0.44656229,117730.0,117720.0,1.23932845]
[1752275648550,0.44556229,117730.0,117720.0,1.23932845]
[1752275648751,0.44656229,117730.0,117720.0,1.23932845]
[1752275649050,0.003,117730.0,117720.0,1.23932845]
[1752275649246,0.07940514,117730.0,117720.0,1.55420246]
[1752275649452,0.06315212,117730.0,117720.0,1.55420246]
[1752275649753,0.06415212,117730.0,117720.0,1.55320246]
[1752275650353,0.06315212,117730.0,117720.0,1.24032845]
[1752275653052,0.06315212,117730.0,117720.0,1.30707142]
[1752275653254,0.06315212,117730.0,117720.0,1.62194543]
[1752275653753,0.11472212,117730.0,117720.0,1.62194543]
[1752275653954,0.11472212,117730.0,117720.0,1.30707142]
[1752275654755,0.08864514,117740.0,117730.0,0.3534404]
[1752275654957,0.01224,117740.0,117730.0,0.7142404]
[1752275656061,0.01324,117740.0,117730.0,0.7142404]
[1752275657058,0.32811401,117740.0,117730.0,0.7142404]
[1752275658456,0.01324,117740.0,117730.0,0.7142404]
[1752275658760,0.32811401,117740.0,117730.0,0.7142404]
[1752275659162,0.49792001,117740.0,117730.0,0.3534404]
[1752275659357,0.32811401,117740.0,117730.0,1.2994404]
[1752275659656,0.39512401,117740.0,117730.0,1.2994404]
[1752275659959,0.47152915,117740.0,117730.0,1.2994404]
[1752275662661,0.15665514,117740.0,117730.0,1.2994404]
[1752275662961,0.47152915,117740.0,117730.0,1.2994404]
[1752275663556,0.40451915,117740.0,117730.0,1.2994404]
[1752275665564,0.32811401,117740.0,117730.0,1.2994404]
[1752275665759,0.38920993,117740.0,117730.0,1.2994404]
[1752275666064,0.32811401,117740.0,117730.0,1.2994404]
[1752275667666,0.01324,117740.0,117730.0,1.2994404]
[1752275667869,0.32811401,117740.0,117730.0,1.2994404]
[1752275668167,0.38920814,117740.0,117730.0,1.2994404]
[1752275673270,0.37696814,117740.0,117730.0,1.2994404]
[1752275674777,0.53356931,117740.0,117730.0,1.2994404]
[1752275677178,0.54580931,117740.0,117730.0,1.2994404]
[1752275684576,0.54580931,117740.0,117730.0,1.2993204]
[1752275684781,0.07433413,117740.0,117730.0,1.2993204]
[1752275684971,0.54580931,117740.0,117730.0,1.2993204]
[1752275685781,0.07433413,117740.0,117730.0,1.2993204]
[1752275685982,0.48471518,117740.0,117730.0,1.2993204]
[1752275688584,0.56112032,117740.0,117730.0,1.2993204]
[1752275689385,0.01324,117740.0,117730.0,1.53505799]
[1752275689581,0.24897759,117740.0,117730.0,1.53505799]
[1752275693383,0.24897759,117740.0,117730.0,1.2993204]
[1752275693589,0.24897759,117740.0,117730.0,1.53505799]
[1752275693794,0.24897759,117740.0,117730.0,1.2993204]
[1752275693989,0.24897759,117740.0,117730.0,1.53505799]
[1752275694486,0.3101059,117740.0,117730.0,1.53505799]
[1752275694889,0.3101059,117740.0,117730.0,1.2993204]
[1752275695089,0.3101059,117740.0,117730.0,1.53505799]
[1752275695790,0.3101059,117740.0,117730.0,1.2993204]
[1752275696089,0.3101059,117740.0,117730.0,1.53505799]
[1752275697390,0.3101059,117740.0,117730.0,1.2993204]
[1752275697695,0.3101059,117740.0,117730.0,1.53505799]
[1752275699998,0.54584349,117740.0,117730.0,1.2993204]
[1752275700198,0.3101059,117740.0,117730.0,1.53505799]
[1752275701700,0.3101059,117740.0,117730.0,1.2993204]
[1752275701896,0.3101059,117740.0,117730.0,1.53505799]
[1752275702100,0.06054,117710.0,117700.0,0.3608]
[1752275702293,0.06054,117710.0,117690.0,0.9798209]
[1752275702294,0.18434,117700.0,117690.0,0.9798209]
[1752275702494,0.65581518,117700.0,117690.0,0.98835062]
[1752275702999,1.01661518,117700.0,117690.0,0.98835062]
[1752275703200,1.18647888,117700.0,117690.0,0.98835062]
[1752275703400,0.18434,117700.0,117690.0,0.98835062]
[1752275703598,0.82567888,117700.0,117690.0,0.40339062]
[1752275703999,0.82567888,117700.0,117690.0,0.98839062]
[1752275704200,0.82567888,117700.0,117690.0,0.99139062]
[1752275704900,0.66877486,117700.0,117690.0,0.99139062]
[1752275705402,0.66877486,117700.0,117690.0,0.99239062]
[1752275705603,0.73694174,117700.0,117690.0,0.99239062]
[1752275706204,0.74919174,117700.0,117690.0,0.99239062]
[1752275707504,0.57932804,117700.0,117690.0,0.99239062]
[1752275708105,0.74919174,117700.0,117690.0,1.35319062]
[1752275710004,0.72420174,117700.0,117690.0,1.32974062]
[1752275710706,0.72420174,117700.0,117690.0,0.96894062]
[1752275711404,0.72420174,117700.0,117690.0,1.32974062]
[1752275712306,0.55433804,117700.0,117690.0,1.32974062]
[1752275714711,0.72420174,117700.0,117690.0,1.32974062]
[1752275714911,0.72420174,117700.0,117690.0,1.35319062]
[1752275716010,0.55433804,117700.0,117690.0,1.35319062]
[1752275717410,0.08041688,117700.0,117690.0,1.66776178]
[1752275718008,0.01225,117700.0,117690.0,1.66776178]
[1752275718208,0.01740004,117720.0,117710.0,0.3422593]
[1752275718512,0.01740004,117720.0,117710.0,1.2880993]
[1752275718811,0.60084646,117730.0,117720.0,0.2289749]
[1752275718812,0.66261646,117730.0,117720.0,0.2289749]
[1752275719007,0.66261646,117730.0,117720.0,0.3422449]
[1752275719512,0.72374993,117730.0,117720.0,0.3422449]
[1752275719910,0.66261646,117730.0,117720.0,0.3422449]
[1752275720211,0.72474993,117730.0,117720.0,0.3422449]
[1752275720406,0.66361646,117730.0,117720.0,0.3422449]
[1752275723016,0.66461646,117730.0,117720.0,0.3422449]
[1752275726512,0.72574993,117730.0,117720.0,0.3422449]
[1752275727714,0.24135347,117730.0,117720.0,0.3422449]
[1752275728014,0.55592463,117730.0,117720.0,0.3422449]
[1752275728415,0.72574503,117730.0,117720.0,0.3422449]
[1752275728815,0.72474503,117730.0,117720.0,0.3422449]
[1752275729114,0.72574503,117730.0,117720.0,0.3422449]
[1752275729714,0.72474503,117730.0,117720.0,0.3422449]
[1752275729913,0.72474503,117730.0,117720.0,0.3432449]
[1752275731319,0.72374503,117730.0,117720.0,0.3432449]
[1752275731618,0.72374503,117730.0,117720.0,0.3452449]
[1752275733118,0.40917387,117730.0,117720.0,0.3452449]
[1752275733318,0.72374503,117730.0,117720.0,0.3452449]
[1752275738821,1.08441829,117730.0,117720.0,0.3452449]
[1752275739022,0.72361829,117730.0,117720.0,0.3452449]
[1752275739922,1.08441829,117730.0,117720.0,0.3452449]
[1752275742026,1.33798272,117730.0,117720.0,0.003]
[1752275742216,1.39898945,117730.0,117720.0,0.1728348]
[1752275742524,1.39898945,117730.0,117720.0,0.1728349]
[1752275743127,1.08441829,117730.0,117720.0,0.1728349]
[1752275744023,1.66929829,117730.0,117720.0,0.1728349]
[1752275745127,1.98386945,117730.0,117720.0,0.1728349]
[1752275745326,1.6846967,117730.0,117720.0,0.1728349]
[1752275749235,1.6846967,117730.0,117720.0,0.003]
[1752275749532,1.6846967,117730.0,117720.0,0.1728349]
[1752275750129,1.99926786,117730.0,117720.0,0.003]
[1752275751133,2.02990221,117730.0,117720.0,0.003]
[1752275756036,1.92286272,117730.0,117720.0,0.003]
[1752275757231,0.3410048,117720.0,117710.0,0.1698445]
[1752275757430,1.40731613,117720.0,117710.0,0.1698445]
[1752275757629,0.3586738,117710.0,117700.0,0.2777755]
[1752275757833,0.3410481,117690.0,117680.0,0.00169945]
[1752275758043,1.69179042,117690.0,117680.0,0.00169945]
[1752275758532,0.97019042,117690.0,117680.0,0.19458205]
[1752275758734,1.33099042,117690.0,117680.0,0.28207205]
[1752275759336,1.01641926,117690.0,117680.0,0.28407205]
[1752275760042,1.01641926,117690.0,117680.0,0.02668945]
[1752275760338,0.341077,117670.0,117660.0,0.04576188]
[1752275760634,1.0850181,117670.0,117660.0,0.02299]
[1752275761035,0.77044694,117670.0,117660.0,0.02299]
[1752275761242,1.0850181,117670.0,117660.0,0.3446514]
[1752275762140,1.0860181,117670.0,117660.0,0.3446514]
[1752275763036,1.0850181,117670.0,117660.0,0.3446514]
[1752275763231,0.3410914,117660.0,117650.0,0.40991028]
[1752275763435,0.65566256,117660.0,117650.0,0.40991028]
[1752275764136,0.65566256,117660.0,117650.0,0.3871384]
[1752275764335,0.65566256,117660.0,117650.0,0.3446556]
[1752275764635,0.65566256,117660.0,117650.0,0.3456556]
[1752275764839,1.01646256,117660.0,117650.0,0.3456556]
[1752275765340,1.01646256,117660.0,117650.0,0.3466556]
[1752275767140,0.65566256,117660.0,117650.0,0.1949156]
[1752275767338,1.01646256,117660.0,117650.0,0.002]
[1752275767641,1.01646256,117660.0,117650.0,0.02499]
[1752275768032,1.01646256,117660.0,117650.0,0.002]
[1752275768234,1.61686256,117660.0,117650.0,0.002]
[1752275771845,1.61686256,117660.0,117650.0,0.1719358]
[1752275773540,1.61686256,117660.0,117650.0,0.002]
[1752275774646,0.17117,117660.0,117650.0,0.3466658]
[1752275774850,0.37464116,117660.0,117650.0,0.7074658]
[1752275775039,0.46907966,117670.0,117660.0,0.1699214]
[1752275775239,0.44129966,117670.0,117660.0,0.3446514]
[1752275775543,0.44129966,117670.0,117660.0,0.7054514]
[1752275776450,0.1267285,117670.0,117660.0,0.7054514]
[1752275776649,0.44129966,117670.0,117660.0,0.7054514]
[1752275776947,0.54454806,117670.0,117660.0,0.7054514]
[1752275777246,0.37464116,117670.0,117660.0,0.7054514]
[1752275777849,0.54454806,117670.0,117660.0,0.7054514]
[1752275778248,0.54454806,117670.0,117660.0,0.7074514]
[1752275778449,0.54454806,117670.0,117660.0,0.7104514]
[1752275780148,0.63459806,117670.0,117660.0,0.7104514]
[1752275780550,1.01859806,117670.0,117660.0,0.3496514]
[1752275780848,0.65779806,117670.0,117660.0,0.3496514]
[1752275781047,1.01859806,117670.0,117660.0,0.11548]
[1752275781241,1.01859806,117670.0,117660.0,0.005]
[1752275781741,1.01859806,117670.0,117660.0,0.02808]
[1752275781950,1.01859806,117670.0,117660.0,0.1980014]
[1752275783955,1.01859806,117670.0,117660.0,0.2868014]
[1752275787658,0.7040269,117670.0,117660.0,0.2868014]
[1752275787854,1.01859806,117670.0,117660.0,0.3462914]
[1752275788661,0.7040269,117670.0,117660.0,0.3462914]
[1752275788863,1.01859806,117670.0,117660.0,0.3462914]
[1752275792862,0.65779806,117670.0,117660.0,0.3462914]
[1752275793063,1.01859806,117670.0,117660.0,0.3462914]
[1752275795463,0.06007,117670.0,117660.0,0.3462914]
[1752275795661,0.54454806,117670.0,117660.0,0.7070914]
[1752275796264,0.63459806,117670.0,117660.0,0.7070914]
[1752275801771,0.46469116,117670.0,117660.0,0.7070914]
[1752275802166,0.39480576,117680.0,117670.0,0.341277]
[1752275802372,0.65474826,117680.0,117670.0,0.940717]
[1752275802572,0.67794826,117680.0,117670.0,0.940717]
[1752275803168,0.65474826,117680.0,117670.0,0.940717]
[1752275803568,0.65474826,117680.0,117670.0,0.941717]
[1752275803767,0.65474826,117680.0,117670.0,0.942717]
[1752275803974,0.65474826,117680.0,117670.0,0.95137823]
[1752275804164,0.48485576,117680.0,117670.0,0.95137823]
[1752275804366,0.33217576,117680.0,117670.0,0.95137823]
[1752275804666,0.33217576,117680.0,117670.0,1.31217823]
[1752275809974,0.31457116,117680.0,117670.0,1.31217823]
[1752275810177,0.37357116,117690.0,117680.0,0.3382325]
[1752275810376,0.37357116,117690.0,117680.0,0.6990325]
[1752275810579,0.46011116,117690.0,117680.0,0.6990325]
[1752275812278,0.14554,117690.0,117680.0,0.6990325]
[1752275812478,0.46011116,117690.0,117680.0,0.6990325]
[1752275812879,0.37357116,117690.0,117680.0,0.6990325]
[1752275814278,0.31657116,117690.0,117680.0,0.6990325]
[1752275815174,0.002,117690.0,117680.0,1.01360366]
[1752275815378,0.002,117690.0,117680.0,1.18354766]
[1752275815578,0.002,117690.0,117680.0,1.68354766]
[1752275816775,0.002,117690.0,117680.0,1.51360366]
[1752275817676,0.002,117690.0,117680.0,1.1990325]
[1752275817876,0.002,117690.0,117680.0,1.51360366]
[1752275818082,0.33222566,117710.0,117700.0,0.08344]
[1752275818283,0.33222566,117710.0,117700.0,1.31455339]
[1752275818880,0.38922566,117710.0,117700.0,1.31455339]
[1752275819980,0.39222566,117710.0,117700.0,1.31455339]
[1752275821178,0.64861496,117710.0,117700.0,1.31455339]
[1752275821784,0.47876566,117710.0,117700.0,1.31455339]
[1752275821985,0.64861496,117710.0,117700.0,1.31455339]
[1752275822485,0.47876566,117710.0,117700.0,1.31455339]
[1752275822785,0.65061496,117710.0,117700.0,1.31455339]
[1752275822985,0.48076566,117710.0,117700.0,1.31455339]
[1752275823188,0.1661945,117710.0,117700.0,1.31455339]
[1752275823488,0.48076566,117710.0,117700.0,1.31455339]
[1752275824887,0.65061496,117710.0,117700.0,1.31455339]
[1752275825387,0.48076566,117710.0,117700.0,1.31455339]
[1752275825685,0.65061496,117710.0,117700.0,0.95375339]
[1752275825882,0.65061496,117710.0,117700.0,0.9377237]
[1752275825883,1.03416496,117710.0,117700.0,0.9377237]
[1752275826092,0.67336496,117710.0,117700.0,0.9377237]
[1752275828084,0.48076566,117710.0,117700.0,0.9377237]
[1752275828389,0.39422566,117710.0,117700.0,1.2985237]
[1752275828585,0.33722566,117710.0,117700.0,1.2985237]
[1752275830800,0.39422566,117710.0,117700.0,1.2985237]
[1752275832894,0.0796545,117710.0,117700.0,1.2985237]
[1752275833090,0.39422566,117710.0,117700.0,1.2985237]
[1752275834097,0.37657116,117710.0,117700.0,1.2985237]
[1752275837596,0.062,117710.0,117700.0,1.2985237]
[1752275837899,0.37657116,117710.0,117700.0,1.2985237]
[1752275840301,0.31957116,117710.0,117700.0,1.2985237]
[1752275843998,0.005,117710.0,117700.0,1.2985237]
[1752275844198,0.005,117710.0,117700.0,1.61309486]
[1752275845102,0.005,117710.0,117700.0,2.11309486]
[1752275845303,0.005,117710.0,117700.0,1.7985237]
[1752275850308,0.005,117710.0,117700.0,2.11309486]
[1752275851406,0.005,117710.0,117700.0,1.7985237]
[1752275856411,0.31957116,117710.0,117700.0,1.7985237]
[1752275857814,0.37981116,117710.0,117700.0,1.1990037]
[1752275858019,0.37981116,117710.0,117700.0,1.7964837]
[1752275858718,0.37981116,117710.0,117700.0,1.2964837]
[1752275862222,0.37981116,117710.0,117700.0,0.9356837]
[1752275862419,0.37981116,117710.0,117700.0,1.2964837]
[1752275862822,0.31957116,117710.0,117700.0,1.2964837]
[1752275865122,0.005,117710.0,117700.0,1.2964837]
[1752275865427,0.31957116,117710.0,117700.0,1.2964837]
[1752275878532,0.31957116,117710.0,117700.0,1.61105486]
[1752275878837,0.005,117710.0,117700.0,1.61105486]
[1752275879137,0.005,117710.0,117700.0,1.2964837]
[1752275879337,0.005,117710.0,117700.0,1.61105486]
[1752275880439,0.005,117710.0,117700.0,2.11105486]
[1752275880835,0.24080096,117710.0,117700.0,2.26808562]
[1752275883138,0.005,117710.0,117700.0,2.26808562]
[1752275883732,0.24080096,117710.0,117700.0,2.26808562]
[1752275885338,0.24080096,117710.0,117700.0,1.7964837]
[1752275885539,0.24080096,117710.0,117700.0,2.26808562]
[1752275887240,0.005,117710.0,117700.0,2.26808562]
[1752275887540,0.24080096,117710.0,117700.0,2.26808562]
[1752275888041,0.24080096,117710.0,117700.0,2.03228466]
[1752275888442,0.24080096,117710.0,117700.0,2.26808562]
[1752275889739,0.24080096,117710.0,117700.0,2.03228466]
[1752275890439,0.23780096,117710.0,117700.0,2.03228466]
[1752275890641,0.24080096,117710.0,117700.0,2.03228466]
[1752275891035,0.005,117710.0,117700.0,2.26808562]
[1752275891241,3e-08,117710.0,117700.0,2.26808562]
[1752275892036,3e-08,117710.0,117700.0,1.7964837]
[1752275892341,3e-08,117710.0,117700.0,2.26808562]
[1752275892342,0.23580099,117710.0,117700.0,2.26808562]
[1752275892741,3e-08,117710.0,117700.0,2.26808562]
[1752275893041,3e-08,117710.0,117700.0,2.15843562]
[1752275906350,0.23580096,117720.0,117710.0,0.1698493]
[1752275906546,0.23580096,117720.0,117710.0,0.84846026]
[1752275907049,0.23580096,117720.0,117710.0,0.93028026]
[1752275908658,0.23580096,117720.0,117710.0,1.43028026]
[1752275911461,0.23580096,117720.0,117710.0,1.1944793]
[1752275911756,0.07398205,117730.0,117720.0,0.3336648]
[1752275911956,0.30978301,117730.0,117720.0,1.2876248]
[1752275912158,0.30978301,117730.0,117720.0,1.52342576]
[1752275912561,0.30978301,117730.0,117720.0,1.2876248]
[1752275912762,0.56015341,117730.0,117720.0,1.2876248]
[1752275913062,0.56115341,117730.0,117720.0,1.2876248]
[1752275913263,0.39133301,117730.0,117720.0,1.2876248]
[1752275913767,0.39133301,117730.0,117720.0,1.35681195]
[1752275914165,0.39333301,117730.0,117720.0,1.35681195]
[1752275914465,0.56315341,117730.0,117720.0,1.35681195]
[1752275915265,0.58572341,117730.0,117720.0,1.35681195]
[1752275915871,0.41590301,117730.0,117720.0,1.37315953]
[1752275916168,0.41590301,117730.0,117720.0,1.38163538]
[1752275917270,0.58572341,117730.0,117720.0,1.38163538]
[1752275917870,0.34992245,117730.0,117720.0,1.38163538]
[1752275918163,0.58572341,117730.0,117720.0,1.38163538]
[1752275918764,0.82152437,117730.0,117720.0,0.35001248]
[1752275918970,1.18232437,117730.0,117720.0,0.94321248]
[1752275920170,1.16441232,117730.0,117720.0,0.9268649]
[1752275920372,0.3270249,117720.0,117710.0,0.46964283]
[1752275920569,1.03442778,117720.0,117710.0,1.4153278]
[1752275920771,0.79862682,117720.0,117710.0,1.0120663]
[1752275920967,0.2464893,117710.0,117700.0,0.4186107]
[1752275921271,0.79864122,117710.0,117700.0,1.0124107]
[1752275922271,0.79864122,117710.0,117700.0,1.02105102]
[1752275922470,0.79864122,117710.0,117700.0,1.02205102]
[1752275923567,0.39299096,117710.0,117700.0,1.02205102]
[1752275923871,0.39299096,117710.0,117700.0,1.38285102]
[1752275924073,0.79864122,117710.0,117700.0,1.02205102]
[1752275924271,0.79864122,117710.0,117700.0,1.38285102]
[1752275924470,0.56284026,117710.0,117700.0,1.38285102]
[1752275924772,0.64154333,117710.0,117700.0,1.38285102]
[1752275924974,0.64154333,117710.0,117700.0,1.02205102]
[1752275925173,0.64154333,117710.0,117700.0,1.02305102]
[1752275925674,0.3270393,117710.0,117700.0,1.02305102]
[1752275925972,0.64154333,117710.0,117700.0,1.02305102]
[1752275927878,0.66671533,117710.0,117700.0,1.02305102]
[1752275929377,0.66671533,117710.0,117700.0,0.95080305]
[1752275929578,0.77361455,117710.0,117700.0,0.90149773]
[1752275931477,0.77361455,117710.0,117700.0,1.01121773]
[1752275931873,0.77361455,117710.0,117700.0,0.89650284]
[1752275932078,0.66671533,117710.0,117700.0,0.89650284]
[1752275932278,0.66671533,117710.0,117700.0,0.95417284]
[1752275932480,0.66671533,117710.0,117700.0,0.96342209]
[1752275932779,0.8194285,117710.0,117700.0,0.96342209]
[1752275935181,0.66671533,117710.0,117700.0,0.96342209]
[1752275935483,0.66671533,117710.0,117700.0,0.87165006]
[1752275936381,0.66671533,117710.0,117700.0,0.78657006]
[1752275936880,0.66671533,117710.0,117700.0,0.87165006]
[1752275939182,0.3522113,117710.0,117700.0,1.02501102]
[1752275939377,0.64154333,117710.0,117700.0,1.02501102]
[1752275939682,0.6721341,117710.0,117700.0,0.99864708]
[1752275941082,0.82484727,117710.0,117700.0,0.99864708]
[1752275941282,0.82484727,117710.0,117700.0,1.00727296]
[1752275941482,0.82484727,117710.0,117700.0,0.95796594]
[1752275941781,0.82484727,117710.0,117700.0,0.87288594]
[1752275941983,0.82484727,117710.0,117700.0,0.81220054]
[1752275943479,0.6721341,117710.0,117700.0,0.81220054]
[1752275943777,0.6721341,117710.0,117700.0,0.83684054]
[1752275944483,0.6721341,117710.0,117700.0,0.91833919]
[1752275944782,0.82939809,117710.0,117700.0,0.91833919]
[1752275945085,0.98211126,117710.0,117700.0,0.91833919]
[1752275945887,0.82939809,117710.0,117700.0,0.91833919]
[1752275947487,0.82939809,117710.0,117700.0,0.86903217]
[1752275948189,0.35763007,117710.0,117700.0,0.86903217]
[1752275948390,0.82939809,117710.0,117700.0,0.86903217]
[1752275949489,0.82939809,117710.0,117700.0,0.80020294]
[1752275951893,0.82939809,117710.0,117700.0,0.68548794]
[1752275953691,0.82939808,117710.0,117700.0,0.59371564]
[1752275955092,0.98211125,117710.0,117700.0,0.59371564]
[1752275959604,1.08917066,117710.0,117700.0,0.38722801]
[1752275960005,0.93645749,117710.0,117700.0,0.38722801]
[1752275960205,0.93645749,117710.0,117700.0,0.74802801]
[1752275960505,0.70057348,117710.0,117700.0,0.74802801]
[1752275960707,0.53072418,117710.0,117700.0,0.74802801]
[1752275960910,0.24077017,117710.0,117700.0,1.27232603]
[1752275961105,0.19881982,117710.0,117700.0,1.27232603]
[1752275961306,0.03059076,117710.0,117700.0,1.27232603]
[1752275961808,0.03059076,117710.0,117700.0,1.77232603]
[1752275962307,0.03059076,117710.0,117700.0,1.77332603]
[1752275962508,0.09173104,117710.0,117700.0,1.77332603]
[1752275962708,0.09173104,117710.0,117700.0,1.77232603]
[1752275962903,0.09173104,117710.0,117700.0,1.77532603]
[1752275964912,0.09173104,117710.0,117700.0,1.77732603]
[1752275967311,0.09173104,117710.0,117700.0,2.13812603]
[1752275969211,0.03059076,117710.0,117700.0,2.13812603]
[1752275970008,0.0916838,117710.0,117700.0,2.13812603]
[1752275975118,0.03059076,117710.0,117700.0,2.13812603]
[1752275978522,0.40805401,117720.0,117710.0,0.2337993]
[1752275978723,0.40805401,117720.0,117710.0,0.90988331]
[1752275978924,0.43029044,117720.0,117710.0,0.90988331]
[1752275979224,0.34777401,117720.0,117710.0,0.90988331]
[1752275979615,0.36994868,117720.0,117710.0,0.90988331]
[1752275979821,0.43022868,117720.0,117710.0,0.90988331]
[1752275980129,0.43022868,117720.0,117710.0,0.6759993]
[1752275980424,0.43022868,117720.0,117710.0,0.91188331]
[1752275985130,0.49132172,117720.0,117710.0,0.91188331]
[1752275985733,0.49132172,117720.0,117710.0,0.6759993]
[1752275985934,0.49132172,117720.0,117710.0,0.91188331]
[1752275986127,0.43022868,117720.0,117710.0,0.91188331]
[1752275987229,0.43020551,117720.0,117710.0,0.91188331]
[1752275988736,0.43020551,117720.0,117710.0,0.6759993]